Workbook

Sheet Skift til Fjernvarme
A1: Sammenligning af opvarmnings omkostninger. | J1: Ctrl+c
E2: COP | F2: Sæt et X ved jeres opvarmningsform
A3: Forbrug | E3: 3 | F3: X
A4: Areal beboelse | B4: 130 | C4: m² | D4: Fjernvarme | E4: Varmepumpe | F4: Gas | G4: Olie
A5: Forbrug Mwh | B5: =(F8*F12)+(G8*G12) -> 16.00000001 | C5: Mwh | D5: =L17 -> 687.5 | E5: 2.1 | F5: 12 | G5: 12.5
A6: Fast bidrag | B6: =(_xlfn.IFS(B4<200,L14*B4,B4>199,L14*200,B4>500,L16*B4))+(_xlfn.IFS(B4<200,"0",B4=200,L15*(B4-200),B4>200,L15*(B4-200))) -> 4712.5 | C6: kr. | D6: =B6 -> 4712.5 | E6: Dags pris | F6: Dags pris | G6: Dags pris
A7: Enheder | D7: Mwh | E7: Kwh | F7: m³ | G7: L
A8: Produceret Mvh: | D8: =D9 -> 16.00000001 | E8: =D8 -> 16.00000001 | F8: =F9*10/1000 -> 16 | G8: =F9*9/1000 -> 14.4
A9: Forbrug pr. år | D9: =B5 -> 16.00000001 | E9: =E8/E3 -> 5.333333338 | F9: 1600
A10: Investering ved indtrædelse i SHKV fjernvarme: | F10: Skriv forbrug i M³ gas eller L. olie.
A11: Indmeldelses gebyr | D11: 25000 | F11: 0 | G11: 0
F12: =IF(F3="X",1,0.000000001) -> 1 | G12: =IF(G3="X",1,0.000000001) -> 1e-09
A13: Varmekilde | D13: Fjernvarme | F13: Gaskedel | G13: Oliefyr | J13: Fjernvarme tariffer | L13: m. Moms
A14: Energi køb | D14: =D5*B5+D6 -> 15712.50001 | E14: =E9*E5*1000 -> 11200.00001 | F14: =F5*F9 -> 19200 | G14: =G5*F9 -> 20000 | J14: Fastafgift | K14: 0-199 m² | L14: =29*1.25 -> 36.25 | N14: De første 200m2
A15: Måleleje | D15: =L20 -> 2500 | F15: 0 | G15: 0 | J15: Bolig: | K15: 200-499 m² | L15: =14.5*1.25 -> 18.125 | N15: 200->499m2
A16: Skorstensfejer | D16: 0 | G16: 2000
A17: Ekstra strømforbrug | F17: 300 | G17: 300 | J17: Forbrug | K17: Mwh | L17: =550*1.25 -> 687.5
A18: Vedligeholdelse | D18: 0 | E18: 2000 | F18: 2500 | G18: 2500 | K18: m³ | L18: 0
A19: Unit leje Ja/Nej | C19: Nej | D19: =L19*C24 -> 2.3875e-06 | J19: Unit | K19: Leasing | L19: =1910*1.25 -> 2387.5
A20: Samlet pris pr. år for opvarmning: | D20: =SUM(D14:D18)+D19 -> 18212.50001 | E20: =SUM(E14:E18) -> 13200.00001 | F20: =SUM(F14:F18) -> 22000 | G20: =SUM(G14:G18) -> 24800 | J20: Måler | K20: Leje | L20: 2500
A22: Investering i ny varme kilde: | D22: ='med Investering'!D13 -> 25000 | E22: ='med Investering'!E13 -> 85000 | F22: ='med Investering'!G13 -> 50000 | G22: ='med Investering'!H13 -> 50000
C24: =IF(C19="Ja",1,0.000000001) -> 1e-09
C25: =IF(C23="Ja",1,0.000000001) -> 1e-09

Sheet med Investering
A1: Sammenligning af opvarmnings omkostninger.
A2: Forbrug | D2: Priser: | E2: er alle med moms
A3: Areal beboelse | B3: ='Skift til Fjernvarme'!B4 -> 130 | C3: m² | D3: Fjernvarme | E3: El / Kwh | F3: Træpiller | G3: Gas | H3: Olie | K3: Fjernvarme tariffer | M3: m. Moms
A4: Forbrug Mwh | B4: ='Skift til Fjernvarme'!B5 -> 16.00000001 | C4: Mwh | D4: ='Skift til Fjernvarme'!L17 -> 687.5 | E4: ='Skift til Fjernvarme'!E5 -> 2.1 | F4: 2 | G4: ='Skift til Fjernvarme'!F5 -> 12 | H4: ='Skift til Fjernvarme'!G5 -> 12.5 | K4: Fastafgift | L4: ='Skift til Fjernvarme'!K14 -> 0-199 m² | M4: 6800
E5: Sidste 30 dage | F5: Dags pris | G5: Dags pris | H5: Dags pris | K5: Bolig: | L5: ='Skift til Fjernvarme'!K15 -> 200-499 m² | M5: 7000
A6: Fast bidrag | B6: ='Skift til Fjernvarme'!B6 -> 4712.5 | C6: kr. | D6: =B6 -> 4712.5 | E6: COP Værdi | M6: 7200
A7: Enheder | D7: Mwh | E7: 3 | F7: Kg | G7: m³ | H7: L | K7: Forbrug | L7: Mwh | M7: 937.5
A8: Forbrug pr produceret Mvh: | D8: 1 | E8: =D8/E7 -> 0.3333333333 | F8: 240 | G8: 100 | H8: =1/0.9*100 -> 111.1111111 | L8: m³ | M8: 3.75
A9: Forbrug pr. år | D9: =B4 -> 16.00000001 | E9: =D9*E8 -> 5.333333338 | F9: =D9*F8 -> 3840.000003 | G9: ='Skift til Fjernvarme'!F9 -> 1600 | H9: ='Skift til Fjernvarme'!F9 -> 1600 | K9: Måler | L9: Leje | M9: ='Skift til Fjernvarme'!L20 -> 2500
A10: Investering for ny varmekilde: | D10: Fjernvarme | E10: Varmepumpe | F10: Pillefyr | G10: Gaskedel | H10: Oliefyr
D11: =C11 -> 0 | E11: 0 | F11: 0 | G11: =E11 -> 0 | H11: =F11 -> 0 | K11: Udtrædelsesgebyr:
D12: 0 | E12: 0 | F12: 0 | G12: =E12 -> 0 | H12: =F12 -> 0 | L12: 0-99 m² | M12: 16356
A13: Ny varmekilde | B13: Kw behov | C13: =H9*8/1064*0.6 -> 7.218045113 | D13: 25000 | E13: 85000 | F13: 60000 | G13: 50000 | H13: 50000 | L13: 100-169 m² | M13: 25607
A14: Samlede investering for varmekilde: | D14: =D11+D12+D13 -> 25000 | E14: =E11+E12+E13 -> 85000 | F14: =F11+F12+F13 -> 60000 | G14: 50000 | H14: 50000 | L14: 170-400m² | M14: 43599
A16: Varmekilde | D16: Fjernvarme | E16: Varmepumpe | F16: Pillefyr | G16: Gaskedel | H16: Oliefyr
A17: Energi køb | D17: =D4*B4+D5*B5+D6 -> 15712.50001 | E17: =B4*E4*E8*1000 -> 11200.00001 | F17: =F9*F4 -> 7680.000007 | G17: =G4*G9 -> 19200 | H17: =H4*H9 -> 20000 | K17: Info vedr COP værdi på varmepumper:
A18: Måleleje | D18: ='Skift til Fjernvarme'!L20 -> 2500 | E18: 0 | F18: 0 | G18: 0 | H18: 0 | K18: 1. For luft til vand varmepumper forudsætter man en
A19: Skorstensfejer | D19: 0 | E19: 0 | F19: 2000 | H19: 2000 | K19: udendørstemperatur på 7 grader og ligeledes en
A20: Ekstra strømforbrug | E20: 0 | F20: 800 | G20: 300 | H20: 300 | K20: fremløbstemperatur på 45 grader
A21: Vedligeholdelse | D21: 375 | E21: 2000 | F21: 2000 | G21: ='Skift til Fjernvarme'!F18 -> 2500 | H21: ='Skift til Fjernvarme'!G18 -> 2500
A22: Samlet pris pr. år for opvarmning: | D22: =SUM(D17:D21) -> 18587.50001 | E22: =SUM(E17:E21) -> 13200.00001 | F22: 12480.00001 | G22: 22000 | H22: =SUM(H17:H21) -> 24800 | K22: 2. Bedste udnyttelse ved gulvarme, eller ekstra store
A23: Tilbagebetaling. | K23: radiatore, så høj fremløbs temperatur undgås.
A24: Investering | D24: =D13 -> 25000 | E24: =E11+E12+E13 -> 85000 | F24: =F11+F12+F13 -> 60000 | G24: =G11+G12+G13 -> 50000 | H24: =H11+H12+H13 -> 50000
A25: Besparelse | D25: 0 | E25: =D22-E22 -> 5387.5 | F25: =D22-F22 -> 6107.500003 | G25: =D22-G22 -> -3412.49999 | H25: =E22-H22 -> -11599.99999 | K25: 3. Middel levetid 12-13 År, De bedste op mod 20 år,
A26: Simpel tilbagebetaling | D26: År | E26: =E24/E25 -> 15.77726218 | F26: =F24/F25 -> 9.823986897 | G26: =G24/G25 -> -14.65201469 | H26: =H24/H25 -> -4.310344831 | K26: gennemsnitsstørrelse.
A27: Tilbagebetaling incl. financering
A28: Egen financering | E28: 0 | F28: 0 | G28: 0 | H28: 0 | K28: Info hentet fra hjemmesiden Varmepumpefakta.dk
A29: Nødvendig lånebeløb | E29: =E24-E28+0.00001 -> 85000.00001 | F29: =F24-F28+0.00001 -> 60000.00001 | G29: =G24-G28+0.00001 -> 50000.00001 | H29: =H24-H28+0.00001 -> 50000.00001
A30: Låne periode, antal måneder | E30: 24 | F30: 24 | G30: 24 | H30: 24
A31: Forentning af banklån % | E31: 0.045 | F31: 0.045 | G31: 0.045 | H31: 0.045
A32: Renteudgift i perioden | E32: =-(CUMIPMT(E31/12,E30,E29,1,E30,0)) -> 4041.535567 | F32: =-(CUMIPMT(F31/12,F30,F29,1,F30,0)) -> 2852.848635 | G32: =-(CUMIPMT(G31/12,G30,G29,1,G30,0)) -> 2377.373863 | H32: =-(CUMIPMT(H31/12,H30,H29,1,H30,0)) -> 2377.373863
A33: Samlede investering incl renter | E33: =E29+E32 -> 89041.53558 | F33: =F29+F32 -> 62852.84865 | G33: =G29+G32 -> 52377.37387 | H33: =H29+H32 -> 52377.37387
A34: Besparelse | E34: =E25 -> 5387.5 | F34: =F25 -> 6107.500003 | G34: =G25 -> -3412.49999 | H34: =H25 -> -11599.99999
A35: Tilbagebetalingstid incl. forrentning | D35: År | E35: =(E33/E25)+(E28/E25) -> 16.5274312 | F35: =(F33/F25)+(F28/F25) -> 10.29109269 | G35: =(G33/G25)+(G28/G25) -> -15.34868103 | H35: =(H33/H25)+(H28/H25) -> -4.515290855

Sheet Udtrædelse (hidden)
A1: Sammenligning af opvarmnings omkostninger.
A2: Forbrug | D2: Priser: | E2: er alle med moms
A3: Areal beboelse | B3: 130 | C3: m² | D3: Fjernvarme | E3: El / Kwh | F3: Træpiller | G3: Gas | H3: Olie | K3: Fjernvarme tariffer | M3: m. Moms
A4: Forbrug Mwh | B4: 18 | C4: Mwh | D4: =M7 -> 937.5 | E4: 2.42 | F4: 2.9 | G4: =4.46+3.42 -> 7.88 | H4: 12.5 | K4: Fastafgift | L4: 0-99 m² | M4: 6800
A5: Forbrug m³ | B5: 435 | C5: m³ | D5: =M8 -> 3.75 | E5: Sidste 30 dage | F5: Dags pris | G5: Dags pris | H5: Dags pris | K5: Bolig: | L5: 100-169 m² | M5: 7000
A6: Fast bidrag | B6: =_xlfn.IFS(B3<100,M4,B3<170,M5,B3>169,M6) -> 7000 | C6: kr. | D6: =B6 -> 7000 | E6: COP Værdi | L6: 170-400m² | M6: 7200
A7: Enheder | D7: Mwh | E7: 2.5 | F7: Kg | G7: m³ | H7: L | K7: Forbrug | L7: Mwh | M7: 937.5
A8: Forbrug pr produceret Mvh: | D8: 1 | E8: =D8/E7 -> 0.4 | F8: 240 | G8: 100 | H8: =1/0.9*100 -> 111.1111111 | L8: m³ | M8: 3.75
A9: Forbrug pr. år | D9: =B4 -> 18 | E9: =D9*E8 -> 7.2 | F9: =D9*F8 -> 4320 | G9: =D9*G8 -> 1800 | H9: =D9*H8 -> 2000 | K9: Måler | L9: Leje | M9: 500
A10: Investering ved udtrædelse af SHKV fjernvarme i: | E10: Varmepumpe | F10: Pillefyr | G10: Gaskedel | H10: Oliefyr
A11: Udtrædelses gebyr: | D11: =_xlfn.IFS(B3<100,M12,B3<170,M13,B3>169,M14) -> 25607 | E11: =D11 -> 25607 | F11: =E11 -> 25607 | G11: =E11 -> 25607 | H11: =F11 -> 25607 | K11: Udtrædelsesgebyr:
A12: Omkostning for afkobling: | D12: 30000 | E12: =D12 -> 30000 | F12: =E12 -> 30000 | G12: =E12 -> 30000 | H12: =F12 -> 30000 | L12: 0-99 m² | M12: 16356
A13: Ny varmekilde | B13: behov | C13: =H9*8/1064*0.6 -> 9.022556391 | D13: Kw | E13: 85000 | F13: 55000 | G13: 50000 | H13: 50000 | L13: 100-169 m² | M13: 25607
A14: Samlede investering for skift af varmekilde: | E14: =E11+E12+E13 -> 140607 | F14: =F11+F12+F13 -> 110607 | G14: 105607 | H14: 105607 | L14: 170-400m² | M14: 43599
A16: Varmekilde | D16: Fjernvarme | E16: Varmepumpe | F16: Pillefyr | G16: Gaskedel | H16: Oliefyr
A17: Energi køb | D17: =D4*B4+D5*B5+D6 -> 25506.25 | E17: =B4*E4*E8*1000 -> 17424 | F17: =F9*F4 -> 12528 | G17: =G4*G9 -> 14184 | H17: =H4*H9 -> 25000 | K17: Info vedr COP værdi på varmepumper:
A18: Måleleje | D18: =M9 -> 500 | E18: 0 | F18: 0 | G18: 0 | H18: 0 | K18: 1. For luft til vand varmepumper forudsætter man en
A19: Skorstensfejer | D19: 0 | E19: 0 | F19: 2000 | G19: 2000 | H19: 2000 | K19: udendørstemperatur på 7 grader og ligeledes en
A20: Ekstra strømforbrug | E20: 0 | F20: 800 | G20: 300 | H20: 300 | K20: fremløbstemperatur på 45 grader
A21: Vedligeholdelse | D21: 0 | E21: 2000 | F21: 2000 | G21: 1500 | H21: 1500
A22: Samlet pris pr. år for opvarmning: | D22: =SUM(D17:D21) -> 26006.25 | E22: =SUM(E17:E21) -> 19424 | F22: 17328 | G22: 17984 | H22: 28800 | K22: 2. Bedste udnyttelse ved gulvarme, eller ekstra store
A23: Tilbagebetaling. | K23: radiatore, så høj fremløbs temperatur undgås.
A24: Investering | D24: =D13 -> Kw | E24: =E11+E12+E13 -> 140607 | F24: =F11+F12+F13 -> 110607 | G24: =G11+G12+G13 -> 105607 | H24: =H11+H12+H13 -> 105607
A25: Besparelse | D25: 0 | E25: =D22-E22 -> 6582.25 | F25: =D22-F22 -> 8678.25 | G25: =D22-G22 -> 8022.25 | H25: =E22-H22 -> -9376 | K25: 3. Middel levetid 12-13 År, De bedste op mod 20 år,
A26: Simpel tilbagebetaling | D26: År | E26: =E24/E25 -> 21.36154051 | F26: =F24/F25 -> 12.74531155 | G26: =G24/G25 -> 13.1642619 | H26: =H24/H25 -> -11.26354522 | K26: gennemsnitsstørrelse.
A27: Tilbagebetaling incl. financering
A28: Egen financering | E28: 0 | F28: 0 | G28: 0 | H28: 0 | K28: Info hentet fra hjemmesiden Varmepumpefakta.dk
A29: Nødvendig lånebeløb | E29: =E24-E28+0.00001 -> 140607 | F29: =F24-F28+0.00001 -> 110607 | G29: =G24-G28+0.00001 -> 105607 | H29: =H24-H28+0.00001 -> 105607
A30: Låne periode, antal måneder | E30: 24 | F30: 24 | G30: 24 | H30: 24
A31: Forentning af banklån % | E31: 0.045 | F31: 0.045 | G31: 0.045 | H31: 0.045
A32: Renteudgift i perioden | E32: =-(CUMIPMT(E31/12,E30,E29,1,E30,0)) -> 6685.508134 | F32: =-(CUMIPMT(F31/12,F30,F29,1,F30,0)) -> 5259.083817 | G32: =-(CUMIPMT(G31/12,G30,G29,1,G30,0)) -> 5021.34643 | H32: =-(CUMIPMT(H31/12,H30,H29,1,H30,0)) -> 5021.34643
A33: Samlede investering incl renter | E33: =E29+E32 -> 147292.5081 | F33: =F29+F32 -> 115866.0838 | G33: =G29+G32 -> 110628.3464 | H33: =H29+H32 -> 110628.3464
A34: Besparelse | E34: =E25 -> 6582.25 | F34: =F25 -> 8678.25 | G34: =G25 -> 8022.25 | H34: =H25 -> -9376
A35: Tilbagebetalingstid incl. forrentning | D35: År | E35: =(E33/E25)+(E28/E25) -> 22.37722787 | F35: =(F33/F25)+(F28/F25) -> 13.35131897 | G35: =(G33/G25)+(G28/G25) -> 13.79018934 | H35: =(H33/H25)+(H28/H25) -> -11.79909838
